fUST/lending_fUST_20250427
["ID","MTS","AMOUNT","RATE_DAILY","PERIOD"]
[359065430,1745688632403,-67.70916812,0.00016333,2]
[359065431,1745688632413,-500.0,0.00016333,2]
[359065432,1745688632423,-500.0,0.00016333,2]
[359065433,1745688632432,-500.0,0.00016333,2]
[359065434,1745688632441,-500.0,0.00016333,2]
[359065435,1745688632451,-479.69334614,0.00016333,2]
[359065436,1745688632461,-500.0,0.00016333,2]
[359065437,1745688632471,-500.0,0.00016333,2]
[359065440,1745688632485,-500.0,0.00016333,2]
[359065442,1745688632495,-500.0,0.00016333,2]
[359065444,1745688632504,-500.0,0.00016333,2]
[359065446,1745688632515,-500.0,0.00016333,2]
[359065448,1745688632525,-500.0,0.00016333,2]
[359065450,1745688632534,-500.0,0.00016333,2]
[359065452,1745688632544,-500.0,0.00016333,2]
[359065454,1745688632554,-157.81356107,0.00016333,2]
[359065457,1745688632564,-500.0,0.00016333,2]
[359065460,1745688632574,-600.0,0.00016333,2]
[359065463,1745688632584,-500.0,0.00016333,2]
[359065465,1745688632593,-500.0,0.00016333,2]
[359065467,1745688632603,-500.0,0.00016333,2]
[359065469,1745688632613,-500.0,0.00016333,2]
[359065472,1745688632623,-500.0,0.00016333,2]
[359065475,1745688632632,-500.0,0.00016333,2]
[359065477,1745688632641,-500.0,0.00016333,2]
[359065479,1745688632651,-500.0,0.00016333,2]
[359065482,1745688632661,-500.0,0.00016333,2]
[359065498,1745688632859,-500.0,0.00016333,2]
[359065500,1745688632870,-500.0,0.00016333,2]
[359065502,1745688632880,-500.0,0.00016333,2]
[359065504,1745688632890,-500.0,0.00016333,2]
[359065505,1745688632900,-3026.67899418,0.00016333,2]
[359065506,1745688632910,-3026.67899418,0.00016333,2]
[359065507,1745688632920,-3026.67899418,0.00016333,2]
[359065508,1745688632929,-3026.67899418,0.00016333,2]
[359065509,1745688632939,-3026.67899418,0.00016333,2]
[359065510,1745688632949,-3026.67899418,0.00016333,2]
[359065511,1745688632960,-686.97385481,0.00016333,2]
[359065512,1745688633051,-262.60356982,0.00016333,2]
[359065513,1745688633064,-727.10796862,0.00016333,2]
[359065514,1745688633076,-1349.99360093,0.00016333,2]
[359065515,1745688633086,-3026.67899418,0.00016333,2]
[359065516,1745688633096,-3026.67899418,0.00016333,2]
[359065517,1745688633107,-3026.67899418,0.00016333,2]
[359065518,1745688633117,-3026.67899418,0.00016333,2]
[359065519,1745688633127,-3026.67899418,0.00016333,2]
[359065520,1745688633137,-459.60994815,0.00016333,2]
[359065521,1745688633150,-543.54654503,0.00016333,2]
[359065522,1745688633163,-2023.522501,0.00016333,2]
[359065523,1745688633173,-3026.67899418,0.00016333,2]
[359065524,1745688633183,-3026.67899418,0.00016333,2]
[359065525,1745688633196,-3026.67899418,0.00016333,2]
[359065526,1745688633207,-3026.67899418,0.00016333,2]
[359065527,1745688633216,-3026.67899418,0.00016333,2]
[359065528,1745688633227,-1121.38785855,0.00016333,2]
[359065529,1745688633257,-1905.29113563,0.00016333,2]
[359065530,1745688633268,-3026.67899418,0.00016333,2]
[359065531,1745688633279,-3026.67899418,0.00016333,2]
[359065532,1745688633289,-3026.67899418,0.00016333,2]
[359065533,1745688633301,-3026.67899418,0.00016333,2]
[359065534,1745688633311,-3026.67899418,0.00016333,2]
[359065535,1745688633322,-3026.67899418,0.00016333,2]
[359065536,1745688633332,-500.0,0.00016333,2]
[359065537,1745688633343,-3026.67899418,0.00016333,2]
[359065538,1745688633353,-500.0,0.00016333,2]
[359065539,1745688633363,-500.0,0.00016333,2]
[359065540,1745688633374,-3026.67899418,0.00016333,2]
[359065541,1745688633384,-500.0,0.00016333,2]
[359065542,1745688633395,-3026.67899418,0.00016333,2]
[359065543,1745688633405,-500.0,0.00016333,2]
[359065544,1745688633415,-298.99270431,0.00016333,2]
[359065545,1745688633425,-3026.67899418,0.00016333,2]
[359065546,1745688633434,-3026.67899418,0.00016333,2]
[359065547,1745688633445,-500.0,0.00016333,2]
[359065548,1745688633454,-500.0,0.00016333,2]
[359065549,1745688633464,-3026.67899418,0.00016333,2]
[359065550,1745688633474,-500.0,0.00016333,2]
[359065551,1745688633483,-3026.67899418,0.00016333,2]
[359065552,1745688633493,-22.26874587,0.00016333,2]
[359065553,1745688633505,-3004.41024831,0.00016333,2]
[359065554,1745688633515,-500.0,0.00016333,2]
[359065555,1745688633525,-3026.67899418,0.00016333,2]
[359065556,1745688633535,-3026.67899418,0.00016333,2]
[359065557,1745688633545,-3026.67899418,0.00016333,2]
[359065558,1745688633555,-500.0,0.00016333,2]
[359065559,1745688633565,-3026.67899418,0.00016333,2]
[359065560,1745688633575,-3026.67899418,0.00016333,2]
[359065561,1745688633585,-3026.67899418,0.00016333,2]
[359065562,1745688633595,-500.0,0.00016333,2]
[359065563,1745688633605,-3026.67899418,0.00016333,2]
[359065564,1745688633614,-500.0,0.00016333,2]
[359065565,1745688633624,-500.0,0.00016333,2]
[359065566,1745688633634,-3026.67899418,0.00016333,2]
[359065567,1745688633644,-3026.67899418,0.00016333,2]
[359065568,1745688633654,-500.0,0.00016333,2]
[359065569,1745688633664,-3026.67899418,0.00016333,2]
[359065570,1745688633674,-500.0,0.00016333,2]
[359065571,1745688633684,-500.0,0.00016333,2]
[359065572,1745688633693,-500.0,0.00016333,2]
[359065573,1745688633703,-500.0,0.00016333,2]
[359065574,1745688633712,-500.0,0.00016333,2]
[359065575,1745688633722,-500.0,0.00016333,2]
[359065576,1745688633732,-3026.67899418,0.00016333,2]
[359065577,1745688633742,-500.0,0.00016333,2]
[359065578,1745688633751,-3026.67899418,0.00016333,2]
[359065579,1745688633761,-297.40509346,0.00016333,2]
[359065580,1745688633770,-500.0,0.00016333,2]
[359065581,1745688633781,-3026.67899418,0.00016333,2]
[359065582,1745688633791,-3026.67899418,0.00016333,2]
[359065583,1745688633800,-3026.67899418,0.00016333,2]
[359065584,1745688633810,-3026.67899418,0.00016333,2]
[359065585,1745688633820,-3026.67899418,0.00016333,2]
[359065586,1745688633830,-3026.67899418,0.00016333,2]
[359065587,1745688633839,-2904.59446332,0.00016333,2]
[359065588,1745688633849,-2904.59446332,0.00016333,2]
[359065589,1745688633859,-2904.59446332,0.00016333,2]
[359065590,1745688633869,-2904.59446332,0.00016333,2]
[359065591,1745688633878,-2904.59446332,0.00016333,2]
[359065592,1745688633888,-2904.59446332,0.00016333,2]
[359065593,1745688633898,-2904.59446332,0.00016333,2]
[359065594,1745688633907,-2904.59446332,0.00016333,2]
[359065595,1745688633917,-2904.59446332,0.00016333,2]
[359065596,1745688633927,-2904.59446332,0.00016333,2]
[359065597,1745688633936,-2904.59446332,0.00016333,2]
[359065598,1745688633946,-2904.59446332,0.00016333,2]
[359065599,1745688633956,-2904.59446332,0.00016333,2]
[359065600,1745688633966,-2904.59446332,0.00016333,2]
[359065601,1745688633975,-2904.59446332,0.00016333,2]
[359065602,1745688633985,-2904.59446332,0.00016333,2]
[359065603,1745688633995,-2904.59446325,0.00016333,2]
[359065604,1745688634005,-19603.87016955,0.00016334,2]
[359065605,1745688634015,-500.0,0.00016373,2]
[359065606,1745688634025,-500.0,0.00016373,2]
[359065607,1745688634034,-500.0,0.00016373,2]
[359065608,1745688634044,-505.18792042,0.00016373,2]
[359065609,1745688634054,-502.29602809,0.00016373,2]
[359065610,1745688634064,-500.0,0.00016373,2]
[359065611,1745688634073,-500.0,0.00016373,2]
[359065612,1745688634083,-500.0,0.00016373,2]
[359065613,1745688634093,-509.62149181,0.00016373,2]
[359065614,1745688634103,-500.0,0.00016373,2]
[359065615,1745688634114,-1051.97092217,0.00016548,2]
[359065616,1745688634124,-1900.6686191,0.00016565,2]
[359065617,1745688634134,-923.1434322,0.00016722,2]
[359065618,1745688634144,-1137.7776405,0.00017472,2]
[359065619,1745688634155,-1000.0,0.00017477,2]
[359065620,1745688634166,-300.71460877,0.00017561,2]
[359065621,1745688634178,-400.0,0.00017571,2]
[359065622,1745688634189,-262.23750346,0.00017571,2]
[359065623,1745688634204,-244.58820008,0.00017571,2]
[359065624,1745688634214,-400.0,0.00017571,2]
[359065625,1745688634223,-500.0,0.00017573,2]
[359065626,1745688634233,-492.56832438,0.00017573,2]
[359065627,1745688634243,-500.0,0.00017573,2]
[359065628,1745688634253,-259.47357438,0.00017573,2]
[359065629,1745688634263,-500.0,0.00017573,2]
[359065630,1745688634275,-500.0,0.00017573,2]
[359065631,1745688634286,-333.91668532,0.00017573,2]
[359065639,1745688638341,-279.57940396,0.00017573,2]
[359065640,1745688638352,-185.82119952,0.00017573,2]
[359065641,1745688638363,-356.23862748,0.00017573,2]
[359065642,1745688638372,-400.0,0.00017573,2]
[359065643,1745688638383,-400.0,0.00017576,2]
[359065644,1745688638392,-400.0,0.00017576,2]
[359065645,1745688638403,-400.0,0.00017576,2]
[359065646,1745688638414,-151.22,0.00017845,2]
[359065647,1745688638424,-400.0,0.00017845,2]
[359065648,1745688638434,-480.75,0.00017847,2]
[359065649,1745688638444,-400.0,0.0001785,2]
[359065650,1745688638453,-400.0,0.0001785,2]
[359065651,1745688638463,-218.04278452,0.00017851,2]
[359065653,1745688638475,-201.95721548,0.00017851,2]
[359065654,1745688638484,-957.73419451,0.000179,2]
[359065655,1745688638494,-826.0,0.0001794,2]
[359065656,1745688638503,-160.0,0.00017953,2]
[359065657,1745688638514,-317.72416004,0.00018119,2]
[359065658,1745688638524,-400.0,0.00018124,2]
[359065659,1745688638533,-465.92,0.00018124,2]
[359065660,1745688638543,-400.0,0.00018398,2]
[359065662,1745688638553,-14566.3223633,0.000185,2]
[359065664,1745688638562,-5630.872256,0.000186,2]
[359065665,1745688638571,-32723.28117002,0.00018653,2]
[359065666,1745688638582,-514.31848179,0.00018653,3]
[359065667,1745688638592,-392070.91067049,0.00018653,2]
[359065668,1745688638605,-59851.92029541,0.00018653,2]
[359065669,1745688638656,-1856.1,0.00018653,2]
[359065782,1745688640864,-208.85544218,0.00017122,2]
[359066036,1745688643521,-2736.04007032,0.00017122,2]
[359066037,1745688643531,-15132.00872521,0.00018653,2]
[359066038,1745688643562,-17.99356909,0.00018653,2]
[359066039,1745688643573,-18462.72447286,0.00018653,2]
[359066040,1745688643583,-151.0,0.00018653,2]
[359066041,1745688643592,-151.0,0.00018653,2]
[359066043,1745688643602,-151.0,0.00018653,2]
[359066045,1745688643611,-151.0,0.00018653,2]
[359066047,1745688643621,-151.0,0.00018653,2]
[359066049,1745688643631,-2940.920766,0.00018653,2]
[359066052,1745688643641,-2940.920766,0.00018653,2]
[359066054,1745688643651,-212.298791,0.00018653,2]
[359066056,1745688643661,-151.0,0.00018653,2]
[359066058,1745688643670,-957.73419441,0.00018659,2]
[359066060,1745688643683,-400.0,0.00018672,2]
[359066062,1745688643692,-500.0,0.00018673,2]
[359066064,1745688643702,-500.0,0.00018673,2]
[359066066,1745688643714,-500.0,0.00018673,2]
[359066068,1745688643724,-500.0,0.00018673,2]
[359066070,1745688643734,-500.0,0.00018673,2]
[359066072,1745688643745,-500.0,0.00018673,2]
[359066074,1745688643754,-503.58110984,0.00018673,2]
[359066076,1745688643764,-434.07134161,0.00018673,2]
[359066355,1745688646619,-647.97846549,0.00016332,2]
[359066357,1745688646629,-218.75973248,0.00016332,2]
[359066360,1745688646639,-171.99627826,0.00016332,2]
[359066362,1745688646648,-0.03442113,0.00018673,2]
[359066369,1745688646713,-65.89423726,0.00018673,2]
[359066371,1745688646722,-141.29187259,0.00018673,2]
[359066495,1745689545255,-309.3532818,0.00015455,2]
[359066496,1745689545279,-204.0619827,0.0001613,2]
[359066497,1745689545301,-199.82067607,0.0001623,2]
[359066498,1745689545322,-250.0,0.00016231,2]
[359066499,1745689545346,-160.0,0.00016433,2]
[359066500,1745689545366,-300.0,0.00016437,2]
[359066501,1745689545388,-1200.0,0.00016437,2]
[359066502,1745689545409,-225.93439699,0.00016437,2]
[359066503,1745689550232,-74.06560301,0.00016437,2]
[359066504,1745689550266,-201.59638069,0.00016438,2]
[359066505,1745689550292,-400.0,0.00016438,2]
[359066506,1745689550316,-472.45,0.00016438,2]
[359066507,1745689550338,-400.0,0.00016438,2]
[359066508,1745689550361,-400.0,0.00016438,2]
[359066509,1745689550381,-500.0,0.00016438,2]
[359066510,1745689550404,-251.58057798,0.00016438,2]
[359066511,1745689639093,-642.35110268,0.00016371,2]
[359066512,1745689639118,-148.41942202,0.00016438,2]
[359066513,1745689639140,-515.41,0.00016438,2]
[359066514,1745689639162,-300.0,0.0001647,2]
[359066515,1745689639182,-153.13181273,0.00016471,2]
[359066516,1745689639203,-592.97893144,0.00016471,2]
[359066517,1745689639224,-500.0,0.00016471,2]
[359066518,1745689639251,-600.54940223,0.00016471,2]
[359066519,1745689639273,-308.74616926,0.00016471,2]
[359066520,1745689653113,-191.25383074,0.00016471,2]
[359066521,1745689653135,-268.58807826,0.00016471,2]
[359066522,1745689653164,-600.54940223,0.00016471,2]
[359066523,1745689653189,-600.54940223,0.00016471,2]
[359066524,1745689653211,-500.0,0.00016471,2]
[359066525,1745689653235,-600.54940223,0.00016471,2]
[359066526,1745689653258,-352.59253508,0.00016471,2]
[359066553,1745689832666,-307.82862354,0.00016338,2]
[359066554,1745689832676,-165.01155584,0.0001636,2]
[359066555,1745689832700,-400.0,0.00016438,2]
[359066556,1745689832711,-300.0,0.00016469,2]
[359066557,1745689832722,-755.0,0.00016469,2]
[359066558,1745689832732,-260.0,0.00016469,2]
[359066559,1745689832741,-500.0,0.0001647,2]
[359066560,1745689832751,-500.0,0.0001647,2]
[359066561,1745689832765,-500.0,0.0001647,2]
[359066562,1745689832775,-390.46297749,0.0001647,2]
[359066563,1745689832785,-500.0,0.0001647,2]
[359066564,1745689832795,-500.0,0.0001647,2]
[359066565,1745689832804,-500.0,0.0001647,2]
[359066566,1745689832814,-500.0,0.0001647,2]
[359066567,1745689832824,-500.0,0.0001647,2]
[359066568,1745689832834,-500.0,0.0001647,2]
[359066570,1745689832844,-500.0,0.0001647,2]
[359066572,1745689832854,-500.0,0.0001647,2]
[359066574,1745689832864,-500.0,0.0001647,2]
[359066576,1745689832873,-500.0,0.0001647,2]
[359066577,1745689832883,-500.0,0.0001647,2]
[359066578,1745689832893,-500.0,0.0001647,2]
[359066579,1745689832904,-500.0,0.0001647,2]
[359066581,1745689832913,-500.0,0.0001647,2]
[359066583,1745689832923,-500.0,0.0001647,2]
[359066585,1745689832933,-500.0,0.0001647,2]
[359066587,1745689832942,-500.0,0.0001647,2]
[359066589,1745689832953,-500.0,0.0001647,2]
[359066590,1745689832962,-500.0,0.0001647,2]
[359066591,1745689832972,-500.0,0.0001647,2]
[359066592,1745689832982,-500.0,0.0001647,2]
[359066593,1745689832991,-500.0,0.0001647,2]
[359066595,1745689833001,-500.0,0.0001647,2]
[359066596,1745689833011,-500.0,0.0001647,2]
[359066597,1745689833020,-500.0,0.0001647,2]
[359066598,1745689833030,-500.0,0.0001647,2]
[359066600,1745689833041,-500.0,0.0001647,2]
[359066601,1745689833051,-500.0,0.0001647,2]
[359066602,1745689833062,-500.0,0.0001647,2]
[359066603,1745689833072,-500.0,0.0001647,2]
[359066604,1745689833082,-500.0,0.0001647,2]
[359066605,1745689833093,-500.0,0.0001647,2]
[359066606,1745689833103,-500.0,0.0001647,2]
[359066607,1745689833112,-500.0,0.0001647,2]
[359066608,1745689833122,-500.0,0.0001647,2]
[359066609,1745689833133,-341.62273614,0.0001647,2]
[359066610,1745689833143,-500.0,0.0001647,2]
[359066611,1745689833152,-500.0,0.0001647,2]
[359066612,1745689833162,-500.0,0.0001647,2]
[359066613,1745689833173,-1074.14210839,0.0001647,2]
[359066614,1745689833182,-1074.14210839,0.0001647,2]
[359066615,1745689833193,-1074.14210839,0.0001647,2]
[359066616,1745689833202,-1074.14210839,0.0001647,2]
[359066617,1745689833212,-1074.14210839,0.0001647,2]
[359066618,1745689833223,-1074.14210839,0.0001647,2]
[359066619,1745689833233,-1074.14210839,0.0001647,2]
[359066620,1745689833242,-1074.14210839,0.0001647,2]
[359066621,1745689833252,-1074.14210839,0.0001647,2]
[359066622,1745689833263,-1074.14210839,0.0001647,2]
[359066623,1745689833272,-1074.14210839,0.0001647,2]
[359066624,1745689833282,-1074.14210839,0.0001647,2]
[359066625,1745689833293,-1074.14210839,0.0001647,2]
[359066626,1745689833308,-1074.14210839,0.0001647,2]
[359066627,1745689833318,-1074.14210839,0.0001647,2]
[359066628,1745689833328,-1074.14210839,0.0001647,2]
[359066629,1745689833338,-1074.14210839,0.0001647,2]
[359066630,1745689833347,-1074.14210839,0.0001647,2]
[359066631,1745689833358,-1074.14210839,0.0001647,2]
[359066632,1745689833368,-957.57042629,0.0001647,2]
[359066633,1745689833383,-116.5716821,0.0001647,2]
[359066634,1745689833392,-509.10875122,0.0001647,2]
[359066635,1745689833404,-468.04,0.0001647,2]
[359066636,1745689833416,-96.99335717,0.0001647,2]
[359066637,1745689833426,-1074.14210839,0.0001647,2]
[359066638,1745689833436,-1074.14210839,0.0001647,2]
[359066639,1745689833447,-1074.14210839,0.0001647,2]
[359066640,1745689833457,-1074.14210839,0.0001647,2]
[359066641,1745689833467,-1074.14210839,0.0001647,2]
[359066642,1745689833478,-1074.14210839,0.0001647,2]
[359066643,1745689833488,-1074.14210839,0.0001647,2]
[359066644,1745689833498,-1074.14210839,0.0001647,2]
[359066645,1745689833509,-146.71560964,0.0001647,2]
[359066646,1745689833523,-927.42649875,0.0001647,2]
[359066647,1745689833533,-1074.14210839,0.0001647,2]
[359066648,1745689833544,-1025.2089679,0.0001647,2]
[359066649,1745689833554,-1025.2089679,0.0001647,2]
[359066650,1745689833564,-1025.2089679,0.0001647,2]
[359066651,1745689833575,-1025.2089679,0.0001647,2]
[359066652,1745689833585,-1014.05527586,0.0001647,2]
[359066673,1745689838651,-11.15369204,0.0001647,2]
[359066674,1745689838663,-1025.2089679,0.0001647,2]
[359066675,1745689838675,-1025.2089679,0.0001647,2]
[359066676,1745689838688,-1025.2089679,0.0001647,2]
[359066677,1745689838700,-1025.2089679,0.0001647,2]
[359066678,1745689838712,-1025.2089679,0.0001647,2]
[359066679,1745689838723,-1025.2089679,0.0001647,2]
[359066680,1745689838733,-1025.2089679,0.0001647,2]
[359066681,1745689838744,-1025.2089679,0.0001647,2]
[359066682,1745689838754,-1025.2089679,0.0001647,2]
[359066683,1745689838767,-406.94559686,0.0001647,2]
[359066684,1745689838780,-618.26337104,0.0001647,2]
[359066685,1745689838790,-1025.2089679,0.0001647,2]
[359066686,1745689838800,-1025.2089679,0.0001647,2]
[359066687,1745689838810,-1025.2089679,0.0001647,2]
[359066688,1745689838821,-222.61883175,0.00016472,2]
[359066689,1745689838831,-500.0,0.00016473,2]
[359066690,1745689838841,-500.0,0.00016473,2]
[359066691,1745689838852,-2751.73147494,0.00016473,2]
[359066692,1745689838865,-2012.93094729,0.00016473,2]
[359066693,1745689838879,-297.59686813,0.00016473,2]
[359066694,1745689838891,-6697.3902513,0.00016473,2]
[359066695,1745689838906,-6218.86269977,0.00016473,2]
[359066696,1745689838919,-6921.48775857,0.00016473,2]
[359066697,1745689838931,-218.84889374,0.00016712,2]
[359066698,1745689838941,-400.0,0.00016712,2]
[359066699,1745689838951,-230.22,0.00016712,2]
[359066700,1745689838961,-441.08,0.00016712,2]
[359066701,1745689838971,-400.0,0.00016712,2]
[359066702,1745689838981,-198.2437116,0.0001674,2]
[359066703,1745689838991,-199.929124,0.00016986,2]
[359066704,1745689839001,-400.0,0.00016986,2]
[359066705,1745689839012,-162.864078,0.00017009,2]
[359066706,1745689839023,-162.864078,0.00017094,2]
[359066707,1745689839032,-353.43899553,0.0001726,2]
[359066708,1745689839043,-420.826004,0.00017816,2]
[359066709,1745689839053,-938.19558369,0.000179,2]
[359066710,1745689839064,-840.35238838,0.00017953,2]
[359066711,1745689839075,-160.0,0.00017953,2]
[359066712,1745689839085,-160.0,0.00017953,2]
[359066713,1745689839095,-421.06755229,0.00017953,2]
[359066714,1745689839106,-160.0,0.00017953,2]
[359066715,1745689839117,-160.0,0.00017953,2]
[359066716,1745689839127,-420.0,0.00017997,2]
[359066717,1745689839137,-211.1174264,0.00018022,2]
[359066718,1745689839147,-400.0,0.00018649,2]
[359066719,1745689839158,-160.0,0.00018652,2]
[359066720,1745689839168,-938.19558358,0.00018659,2]
[359066721,1745689839178,-500.0,0.00018673,2]
[359066722,1745689839188,-500.0,0.00018673,2]
[359066723,1745689839198,-500.0,0.00018899,2]
[359066724,1745689839208,-1216.61584122,0.000189,2]
[359066725,1745689839217,-496.29329545,0.0001929,2]
[359066726,1745689839227,-938.19558358,0.00019417,2]
[359066727,1745689839238,-587.0,0.00019668,2]
[359066728,1745689839248,-642.35110268,0.00019668,2]
[359066729,1745689839258,-1394.0,0.000198,2]
[359066730,1745689839268,-500.0,0.00019973,2]
[359066731,1745689839278,-300.0,0.00019973,2]
[359066732,1745689839287,-500.0,0.00019973,2]
[359066733,1745689839296,-500.0,0.00019973,2]
[359066734,1745689839307,-500.0,0.00019973,2]
[359066735,1745689839317,-500.0,0.00019973,2]
[359066736,1745689839327,-500.0,0.00019973,2]
[359066737,1745689839337,-577.98,0.00019989,3]
[359066738,1745689839347,-288.99,0.00019989,3]
[359066739,1745689839357,-867.01,0.00019989,3]
[359066740,1745689839366,-9908.62778702,0.00019999,2]
[359066758,1745689840947,-416.65490336,0.00019999,2]
[359066763,1745689840998,-550.34484643,0.00019999,2]
[359066956,1745689843716,-400.0,0.00018899,2]
[359066957,1745689843726,-17885.53095492,0.00019999,2]
[359066958,1745689843740,-1302.3054421,0.00019999,2]
[359066959,1745689843752,-519.47999996,0.00019999,2]
[359066960,1745689843763,-19417.05606621,0.00019999,2]
[359066961,1745689843773,-28190.60799947,0.0002,2]
[359066962,1745689843785,-742.95507456,0.0002,2]
[359066963,1745689843798,-1125.0,0.0002,2]
[359066965,1745689843931,-299.96584019,0.0002,2]
[359066967,1745689846803,-415.08525201,0.00016469,2]
[359066968,1745689846813,-400.0,0.00018649,2]
[359066969,1745689846823,-400.0,0.00018923,2]
[359066970,1745689846833,-453.1148449,0.0002,2]
[359066971,1745689846846,-4668.99649011,0.0002,2]
[359066972,1745689846858,-2661.11107146,0.0002,2]
[359066973,1745689847145,-346.00918342,0.00019197,2]
[359066974,1745689847157,-28.57081658,0.00019197,2]
[359066975,1745689847167,-1226.92918342,0.0002,2]
[359066999,1745690398430,-615.70492398,0.00016138,2]
[359067000,1745690398460,-2567.31063074,0.00016138,2]
[359067001,1745690398486,-692.17137646,0.00016238,2]
[359067002,1745690398515,-661.20970179,0.0001637,2]
[359067003,1745690398546,-300.0,0.00016468,2]
[359067004,1745690398580,-400.0,0.00016469,2]
[359067005,1745690398610,-400.0,0.00016469,2]
[359067006,1745690398639,-501.60188421,0.00016469,2]
[359067007,1745690398667,-400.0,0.00016469,2]
[359067008,1745690398697,-500.0,0.00016469,2]
[359067009,1745690398729,-511.92839669,0.00016469,2]
[359067010,1745690398757,-500.0,0.00016469,2]
[359067011,1745690398785,-500.0,0.00016469,2]
[359067012,1745690398815,-400.0,0.00016469,2]
[359067013,1745690398843,-500.0,0.00016469,2]
[359067014,1745690398876,-400.0,0.00016469,2]
[359067015,1745690398906,-400.0,0.00016469,2]
[359067016,1745690398934,-500.0,0.00016469,2]
[359067017,1745690398960,-500.0,0.00016469,2]
[359067018,1745690398986,-400.0,0.00016469,2]
[359067019,1745690399015,-277.64948975,0.00016469,2]
[359067020,1745690399045,-400.0,0.00016469,2]
[359067021,1745690399074,-400.0,0.00016469,2]
[359067022,1745690399102,-400.0,0.00016469,2]
[359067023,1745690399130,-400.0,0.00016469,2]
[359067024,1745690399158,-400.0,0.00016469,2]
[359067025,1745690399188,-400.0,0.00016469,2]
[359067026,1745690399217,-400.0,0.00016469,2]
[359067027,1745690399246,-500.0,0.00016469,2]
[359067028,1745690399272,-400.0,0.00016469,2]
[359067029,1745690399296,-500.0,0.00016469,2]
[359067030,1745690399321,-400.0,0.00016469,2]
[359067031,1745690399347,-400.0,0.00016469,2]
[359067032,1745690399375,-400.0,0.00016469,2]
[359067033,1745690399403,-400.0,0.00016469,2]
[359067034,1745690399430,-400.0,0.00016469,2]
[359067035,1745690399454,-446.32203681,0.0001647,2]
[359067036,1745690399487,-500.0,0.0001647,2]
[359067037,1745690399519,-500.0,0.0001647,2]
[359067038,1745690399554,-500.0,0.0001647,2]
[359067039,1745690399585,-500.0,0.0001647,2]
[359067040,1745690399616,-500.0,0.0001647,2]
[359067041,1745690399647,-500.0,0.0001647,2]
[359067042,1745690399677,-500.0,0.0001647,2]
[359067043,1745690399707,-500.0,0.0001647,2]
[359067044,1745690399739,-500.0,0.0001647,2]
[359067045,1745690399769,-500.0,0.0001647,2]
[359067046,1745690399801,-500.0,0.0001647,2]
[359067047,1745690399831,-500.0,0.0001647,2]
[359067048,1745690399862,-500.0,0.0001647,2]
[359067049,1745690399893,-350.0,0.0001647,2]
[359067050,1745690399923,-500.0,0.0001647,2]
[359067051,1745690399955,-500.0,0.0001647,2]
[359067052,1745690399985,-500.0,0.0001647,2]
[359067053,1745690400015,-500.0,0.0001647,2]
[359067054,1745690400048,-500.0,0.0001647,2]
[359067055,1745690400081,-500.0,0.0001647,2]
[359067056,1745690400115,-500.0,0.0001647,2]
[359067057,1745690400154,-500.0,0.0001647,2]
[359067058,1745690400187,-500.0,0.0001647,2]
[359067059,1745690400220,-500.0,0.0001647,2]
[359067060,1745690400252,-500.0,0.0001647,2]
[359067061,1745690400284,-500.0,0.0001647,2]
[359067062,1745690400315,-500.0,0.0001647,2]
[359067063,1745690400347,-500.0,0.0001647,2]
[359067064,1745690400379,-500.0,0.0001647,2]
[359067065,1745690400424,-500.0,0.0001647,2]
[359067066,1745690400464,-500.0,0.0001647,2]
[359067067,1745690400502,-500.0,0.0001647,2]
[359067068,1745690400537,-500.0,0.0001647,2]
[359067069,1745690400574,-500.0,0.0001647,2]
[359067070,1745690400609,-500.0,0.0001647,2]
[359067071,1745690400645,-260.66563679,0.0001647,2]
[359067072,1745690400680,-500.0,0.0001647,2]
[359067073,1745690400714,-500.0,0.0001647,2]